fUSD/lending_fUSD_20250416
["ID","MTS","AMOUNT","RATE_DAILY","PERIOD"]
[358147142,1744767035107,-204.88748131,0.00054794,120]
[358147143,1744767035158,-1597.71022059,0.000589,120]
[358147144,1744767035212,-9997017.35463978,0.00063014,59]
[358147150,1744767038534,-158.244352,0.00017884,2]
[358147151,1744767038544,-500.0,0.00017984,2]
[358147152,1744767038554,-299.45564798,0.00017984,2]
[358147153,1744767038567,-200.54435202,0.00017984,2]
[358147154,1744767038576,-500.0,0.00017984,2]
[358147155,1744767038586,-500.0,0.00017984,2]
[358147156,1744767038595,-500.0,0.00017984,2]
[358147157,1744767038604,-500.0,0.00017984,2]
[358147158,1744767038613,-500.0,0.00017984,2]
[358147159,1744767038623,-500.0,0.00017984,2]
[358147160,1744767038632,-500.0,0.00017984,2]
[358147161,1744767038641,-500.0,0.00017984,2]
[358147162,1744767038650,-500.0,0.00017984,2]
[358147163,1744767038659,-500.0,0.00017984,2]
[358147164,1744767038670,-500.0,0.00017984,2]
[358147165,1744767038679,-233.00564798,0.00017984,2]
[358147166,1744767038691,-266.99435202,0.00017984,2]
[358147167,1744767038700,-500.0,0.00017984,2]
[358147168,1744767038709,-500.0,0.00017984,2]
[358147169,1744767038717,-500.0,0.00017984,2]
[358147170,1744767038726,-500.0,0.00017984,2]
[358147171,1744767038734,-500.0,0.00017984,2]
[358147172,1744767038744,-500.0,0.00017984,2]
[358147173,1744767038753,-500.0,0.00017984,2]
[358147174,1744767038762,-445.57665805,0.00017984,2]
[358147175,1744767038771,-500.0,0.00017984,2]
[358147176,1744767038780,-500.0,0.00017984,2]
[358147177,1744767038789,-733.560794,0.00017986,2]
[358147178,1744767038799,-150.961966,0.00017986,2]
[358147179,1744767038807,-844.849242,0.00017986,2]
[358147180,1744767038818,-150.99,0.00017986,2]
[358147181,1744767038827,-1557.9,0.00017986,2]
[358147182,1744767038836,-499.99,0.00017986,2]
[358147183,1744767038845,-486.83,0.00017986,2]
[358147184,1744767038854,-634.87568793,0.00017986,2]
[358147185,1744767038865,-9365.11431207,0.00017986,2]
[358147186,1744767038876,-5084.91068793,0.00017986,2]
[358147187,1744767038887,-4915.07931207,0.00017986,2]
[358147188,1744767038896,-302.3,0.00017986,2]
[358147189,1744767038905,-295.78,0.00017986,2]
[358147190,1744767038914,-433.84,0.00017998,2]
[358147191,1744767038924,-2639.8,0.00017998,2]
[358147192,1744767038935,-1638.1,0.00017999,2]
[358147193,1744767038944,-332.92713763,0.00017999,2]
[358147194,1744767038954,-192.226634,0.00017999,2]
[358147195,1744767038964,-312.60919534,0.00017999,2]
[358147196,1744767038974,-243.00840118,0.00017999,2]
[358147197,1744767038983,-830.0,0.00018,2]
[358147198,1744767038993,-23405.02931978,0.00018,2]
[358147199,1744767039004,-603.465158,0.00018,2]
[358147200,1744767039015,-848.6840014,0.00018,2]
[358147201,1744767039026,-1392.68663958,0.00018,2]
[358147203,1744767039037,-1900.86494225,0.00018,2]
[358147206,1744767039059,-500.0,0.00017984,2]
[358147207,1744767039068,-500.0,0.00017984,2]
[358147208,1744767039078,-8061.49703077,0.00018,2]
[358147209,1744767039089,-2139.23816886,0.00018,2]
[358147210,1744767039101,-84225.0,0.00018,2]
[358147211,1744767039130,-500.0,0.00017984,2]
[358147212,1744767039142,-500.0,0.00017984,2]
[358147213,1744767039152,-500.0,0.00017984,2]
[358147214,1744767039162,-2153.83319092,0.00018,2]
[358147215,1744767039335,-500.0,0.00017984,2]
[358147216,1744767039346,-500.0,0.00017984,2]
[358147217,1744767039357,-500.0,0.00017984,2]
[358147218,1744767039368,-202076.31318284,0.00018,2]
[358147219,1744767039408,-363.240668,0.00017984,2]
[358147220,1744767040628,-136.759332,0.00017984,2]
[358147221,1744767040638,-500.0,0.00017984,2]
[358147222,1744767040648,-500.0,0.00017984,2]
[358147223,1744767040657,-500.0,0.00017984,2]
[358147224,1744767040668,-500.0,0.00017984,2]
[358147225,1744767040678,-500.0,0.00017984,2]
[358147226,1744767040688,-156.26384866,0.00017984,2]
[358147227,1744767040700,-343.73615134,0.00017984,2]
[358147228,1744767040710,-500.0,0.00017984,2]
[358147229,1744767040720,-500.0,0.00017984,2]
[358147230,1744767040730,-256.91384866,0.00018,2]
[358147231,1744767040742,-717.10633169,0.00018,2]
[358147232,1744767040753,-301.92197159,0.00018,2]
[358147233,1744767040765,-3350.67777773,0.00018,2]
[358147234,1744767040790,-18587.25043584,0.00018,2]
[358147235,1744767040980,-500.0,0.00054794,120]
[358147236,1744767041023,-500.0,0.00054794,120]
[358147237,1744767041064,-500.0,0.00054794,120]
[358147238,1744767041108,-416.21407744,0.00055068,120]
[358147239,1744767041152,-426.33509623,0.00055068,120]
[358147240,1744767041201,-541.34522618,0.00055068,120]
[358147241,1744767041257,-1266921.59916733,0.00063014,59]
[358147242,1744767041272,-5905.49560858,0.00018,2]
[358147243,1744767041283,-132877.48440982,0.00018,2]
[358147244,1744767041295,-25819.26104217,0.00018,2]
[358147245,1744767041307,-294.44505724,0.00018,2]
[358147246,1744767041355,150.0,0.00062699,59]
[358147247,1744767041368,-803.24021193,0.00018,2]
[358147248,1744767041415,209.16019457,0.00054794,120]
[358147249,1744767041436,-1250.98844078,0.00018,2]
[358147250,1744767041504,150.0,0.00062836,59]
[358147251,1744767041602,150.0,0.00062599,59]
[358147252,1744767042071,150.0,0.00062973,59]
[358147253,1744767042291,150.0,0.00062736,59]
[358147254,1744767042708,150.0,0.00062873,59]
[358147259,1744767043571,-159.7334211,0.0001791,2]
[358147260,1744767043581,-650.0,0.00018,2]
[358147261,1744767043591,-7855.91941098,0.00018,2]
[358147262,1744767043603,-4176.05,0.00018,2]
[358147263,1744767043616,-1741.16837425,0.00018,2]
[358147264,1744767043627,-2429.625,0.00018,2]
[358147265,1744767043639,-1772.16665824,0.00018,2]
[358147266,1744767043652,-18917.64810557,0.00018,2]
[358147268,1744767094594,-668.53109183,0.00018,2]
[358147269,1744767094661,153.0,0.00060454,60]
[358147270,1744767094697,306.31920352,0.00054794,120]
[358147271,1744767094743,153.0,0.00060454,60]
[358147272,1744767094784,153.0,0.00060454,60]
[358147273,1744767094824,153.0,0.00060454,60]
[358147274,1744767094869,153.0,0.00060454,60]
[358147275,1744767094917,6654.02,0.0006,60]
[358147276,1744767094954,153.0,0.00060454,60]
[358147277,1744767094971,-1716.3772472,0.00018,2]
[358147278,1744767094982,-1172.02016001,0.00018,2]
[358147279,1744767094994,-3281.0519054,0.00018,2]
[358147280,1744767095005,-1609.41349508,0.00018,2]
[358147281,1744767095042,153.0,0.00060454,60]
[358147282,1744767095088,153.0,0.00060454,60]
[358147283,1744767095130,153.0,0.00060454,60]
[358147284,1744767095166,8720754.00703473,0.00063014,55]
[358147285,1744767103211,161.99,0.00017394,2]
[358147286,1744767177542,805.29,0.00017394,2]
[358147287,1744767290383,250.0,0.00017,2]
[358147288,1744767298094,250.0,0.00017409,2]
[358147289,1744767305618,685.08,0.00015491,2]
[358147290,1744767330871,250.0,0.00017,2]
[358147291,1744767375848,8697.0,0.00025,30]
[358147293,1744767616006,183.37,0.00017409,2]
[358147294,1744767678595,2078.09,0.00017409,2]
[358147295,1744767828176,1396.52624339,0.00017999,5]
[358147296,1744767828238,1396.52624339,0.00017999,5]
[358147297,1744767882092,1658.24,0.00017409,2]
[358147298,1744767964331,1000.0,0.00017241,2]
[358147299,1744768169797,378.47,0.00017414,2]
[358147300,1744768183883,187.75,0.00017466,2]
[358147305,1744768231568,-250.0,0.00017693,2]
[358147306,1744768231578,-217.22500143,0.000177,2]
[358147307,1744768231588,-250.0,0.00017748,2]
[358147308,1744768231597,-685.08,0.00017755,2]
[358147309,1744768231606,-500.0,0.00017863,2]
[358147310,1744768231616,-150.0,0.00017863,2]
[358147311,1744768231626,-500.0,0.0001789,2]
[358147312,1744768231635,-300.0,0.00017899,2]
[358147313,1744768231644,-370.0,0.00017899,2]
[358147314,1744768231654,-259.3548,0.000179,2]
[358147315,1744768231664,-398.0316287,0.000179,2]
[358147316,1744768231673,-8625.4948301,0.000179,2]
[358147317,1744768231685,-77.5751699,0.000179,2]
[358147318,1744768231695,-309.4012138,0.000179,2]
[358147319,1744768231706,-37.94278325,0.000179,2]
[358147320,1744768231718,-10226.7424409,0.000179,2]
[358147321,1744768231727,-160.2365843,0.0001791,2]
[358147322,1744768231737,-150.99,0.0001791,2]
[358147323,1744768231747,-205.0,0.00017973,2]
[358147324,1744768231758,-1600.44403922,0.00017973,2]
[358147325,1744768231772,-175.74596078,0.00017973,2]
[358147326,1744768231781,-321.1,0.00017973,2]
[358147327,1744768231793,-178.92420507,0.00017998,2]
[358147328,1744768231804,-223.05765791,0.00017998,2]
[358147329,1744768231814,-966.63034945,0.00017999,2]
[358147330,1744768231830,-28.06265055,0.00017999,2]
[358147331,1744768231840,-500.0,0.00017999,2]
[358147332,1744768231850,-182.72510587,0.00017999,2]
[358147367,1744768237500,-371.24907863,0.00017999,2]
[358147368,1744768237510,-500.0,0.00017999,2]
[358147369,1744768237520,-500.0,0.00017999,2]
[358147370,1744768237531,-500.0,0.00017999,2]
[358147371,1744768237541,-500.0,0.00017999,2]
[358147372,1744768237551,-500.0,0.00017999,2]
[358147374,1744768237560,-326.55092133,0.00017999,2]
[358147375,1744768237572,-173.44907867,0.00017999,2]
[358147376,1744768237582,-500.0,0.00017999,2]
[358147377,1744768237592,-500.0,0.00017999,2]
[358147378,1744768237601,-346.55092133,0.00017999,2]
[358147379,1744768237613,-153.44907867,0.00017999,2]
[358147380,1744768237622,-294.68818504,0.00017999,2]
[358147381,1744768237654,-205.31181496,0.00017999,2]
[358147382,1744768237663,-500.0,0.00017999,2]
[358147383,1744768237672,-500.0,0.00017999,2]
[358147384,1744768237682,-500.0,0.00017999,2]
[358147385,1744768237692,-500.0,0.00017999,2]
[358147386,1744768237701,-500.0,0.00017999,2]
[358147387,1744768237712,-500.0,0.00017999,2]
[358147388,1744768237722,-500.0,0.00017999,2]
[358147389,1744768237732,-500.0,0.00017999,2]
[358147390,1744768237743,-500.0,0.00017999,2]
[358147391,1744768237753,-500.0,0.00017999,2]
[358147392,1744768237763,-500.0,0.00017999,2]
[358147393,1744768237772,-500.0,0.00017999,2]
[358147394,1744768237782,-500.0,0.00017999,2]
[358147395,1744768237791,-500.0,0.00017999,2]
[358147396,1744768237802,-544.55766581,0.00017999,2]
[358147397,1744768237816,-500.0,0.00017999,2]
[358147398,1744768237826,-500.0,0.00017999,2]
[358147399,1744768237835,-689.0,0.00018,2]
[358147400,1744768237845,-56419.00761085,0.00018,2]
[358147401,1744768237858,-340.69608529,0.00018,2]
[358147402,1744768237870,-661.21728265,0.00018,2]
[358147403,1744768237882,-735.0921918,0.00018,2]
[358147404,1744768237894,-475.05294274,0.00018,2]
[358147405,1744768237906,-3476.6,0.00018,2]
[358147413,1744768239686,-1375.4138,0.00018,2]
[358147414,1744768239818,-47786.97869324,0.00018,2]
[358147415,1744768240006,-1011.06427204,0.00018,2]
[358147418,1744768242551,-240.76996253,0.000179,2]
[358147419,1744768242562,-1254.24336647,0.00018,2]
[358147431,1744768244307,-38573.18358304,0.00018,2]
[358147432,1744768244319,-763.142274,0.00018,2]
[358147436,1744768245678,-379.12940536,0.00018,2]
[358147437,1744768245830,-6025.29715617,0.00018,2]
[358147457,1744768271525,1114.08161821,0.00017999,5]
[358147458,1744768408746,199.38,0.00017409,2]
[358147459,1744768596863,214.78297677,0.00015646,2]
[358147460,1744768596892,343.65398613,0.00015646,2]
[358147461,1744768596926,72.8330371,0.00015646,2]
[358147462,1744768683825,250.0,0.000174,2]
[358147463,1744768751936,200.0,0.00017409,7]
[358147464,1744768813274,2000.0,0.00017409,2]
[358147465,1744769076911,321.39098637,0.0001698,2]
[358147466,1744769076939,178.60901363,0.0001698,2]
[358147467,1744769144116,250.0,0.00017,2]
[358147468,1744769153337,837.78,0.0001698,2]
[358147469,1744769171564,170.31,0.00016712,2]
[358147470,1744769184024,250.0,0.00017,2]
[358147471,1744769252719,1000.0,0.00016946,2]
[358147472,1744769310334,2206.725,0.00017502,2]
[358147484,1744769351409,23900.0,0.00016942,2]
[358147491,1744769416647,161.99,0.00016942,2]
[358147495,1744769431701,-332.09662579,0.000177,2]
[358147496,1744769431712,-136.81457328,0.00017744,2]
[358147497,1744769431723,-29.78542672,0.00017744,2]
[358147498,1744769431733,-250.0,0.00017821,2]
[358147499,1744769431744,-300.0,0.00017889,2]
[358147500,1744769431754,-789.15073007,0.0001789,2]
[358147501,1744769431765,-981.13199423,0.0001789,2]
[358147502,1744769431776,-1078.63973735,0.0001789,2]
[358147503,1744769431792,-7821.01736161,0.0001789,2]
[358147504,1744769431802,-2500.0,0.00017898,2]
[358147505,1744769431812,-5000.0,0.00017898,2]
[358147506,1744769431823,-510.46,0.00017899,2]
[358147507,1744769431833,-24949.76973276,0.00017899,2]
[358147508,1744769431845,-2351.07026724,0.00017899,2]
[358147509,1744769431855,-401.33373289,0.00017899,2]
[358147510,1744769431867,-98.66626711,0.00017899,2]
[358147511,1744769431878,-500.0,0.00017899,2]
[358147512,1744769431888,-500.0,0.00017899,2]
[358147513,1744769431898,-500.0,0.00017899,2]
[358147514,1744769431908,-355.2102123,0.00017899,2]
[358147515,1744769431918,-170.7839967,0.00017899,2]
[358147516,1744769431928,-355.21021228,0.00017899,2]
[358147517,1744769431937,-355.21021228,0.00017899,2]
[358147518,1744769431947,-102.29760475,0.00017899,2]
[358147519,1744769432226,-48.69239525,0.00017899,2]
[358147520,1744769432238,-355.21021228,0.00017899,2]
[358147521,1744769432251,-355.21021228,0.00017899,2]
[358147522,1744769432260,-1280.6012,0.00017899,2]
[358147523,1744769432270,-322.01525977,0.000179,2]
[358147524,1744769432287,-33.19495251,0.000179,2]
[358147525,1744769432297,-355.21021228,0.000179,2]
[358147526,1744769432306,-309.1365,0.000179,2]
[358147528,1744769432316,-1000.0,0.000179,2]
[358147530,1744769432326,-153.9234,0.000179,2]
[358147532,1744769432335,-230.514,0.000179,2]
[358147534,1744769432344,-355.21021228,0.000179,2]
[358147535,1744769432353,-355.21021228,0.000179,2]
[358147537,1744769432363,-355.21021228,0.000179,2]
[358147540,1744769432373,-2751.09941392,0.000179,2]
[358147542,1744769432384,-489.38511936,0.000179,2]
[358147764,1744769437864,-17288.88591498,0.000179,2]
[358147765,1744769437875,-178.62331413,0.000179,2]
[358147766,1744769437885,-631.27,0.00017909,2]
[358147767,1744769437894,-165.7418054,0.0001791,2]
[358147768,1744769437903,-1292.71,0.00017941,2]
[358147769,1744769437914,-792.0,0.00017941,2]
[358147770,1744769437923,-910.219,0.00017941,2]
[358147771,1744769437933,-1443.635,0.00017941,2]
[358147772,1744769437943,-547.739,0.00017941,2]
[358147773,1744769437952,-1284.191,0.00017941,2]
[358147774,1744769437962,-4163.95,0.00017941,2]
[358147775,1744769437971,-577.203,0.00017941,2]
[358147776,1744769437982,-153.271,0.0001795,2]
[358147777,1744769437993,-3966.0,0.0001795,2]
[358147778,1744769438002,-201.0,0.00017973,2]
[358147779,1744769438012,-200.58363798,0.00017973,2]
[358147780,1744769438021,-505.72637364,0.00017973,2]
[358147781,1744769438031,-953.327,0.00017973,2]
[358147782,1744769438040,-500.0,0.00017996,2]
[358147783,1744769438050,-500.0,0.00017996,2]
[358147784,1744769438060,-500.0,0.00017996,2]
[358147785,1744769438070,-500.0,0.00017996,2]
[358147786,1744769438079,-500.0,0.00017996,2]
[358147787,1744769438089,-500.0,0.00017996,2]
[358147788,1744769438098,-500.0,0.00017996,2]
[358147790,1744769438108,-500.0,0.00017996,2]
[358147792,1744769438117,-500.0,0.00017996,2]
[358147794,1744769438126,-500.0,0.00017996,2]
[358147795,1744769438140,-500.0,0.00017996,2]
[358147798,1744769438151,-500.0,0.00017996,2]
[358147799,1744769438161,-500.0,0.00017996,2]
[358147801,1744769438170,-500.0,0.00017996,2]
[358147803,1744769438179,-500.0,0.00017996,2]
[358147805,1744769438189,-500.0,0.00017996,2]
[358147807,1744769438198,-500.0,0.00017996,2]
[358147809,1744769438207,-500.0,0.00017996,2]
[358147811,1744769438219,-500.0,0.00017996,2]
[358147813,1744769438229,-500.0,0.00017996,2]
[358147815,1744769438238,-500.0,0.00017996,2]
[358147817,1744769438248,-500.0,0.00017996,2]
[358147819,1744769438259,-500.0,0.00017996,2]
[358147820,1744769438268,-500.0,0.00017996,2]
[358147822,1744769438277,-500.0,0.00017996,2]
[358147824,1744769438288,-500.0,0.00017996,2]
[358147826,1744769438297,-500.0,0.00017996,2]
[358147828,1744769438307,-500.0,0.00017996,2]
[358147830,1744769438316,-500.0,0.00017996,2]
[358147832,1744769438326,-500.0,0.00017996,2]
[358147834,1744769438335,-500.0,0.00017996,2]
[358147836,1744769438344,-500.0,0.00017996,2]
[358147837,1744769438353,-500.0,0.00017996,2]
[358147838,1744769438363,-500.0,0.00017996,2]
[358147839,1744769438371,-500.0,0.00017996,2]
[358147840,1744769438382,-500.0,0.00017996,2]
[358147841,1744769438391,-500.0,0.00017996,2]
[358147842,1744769438401,-500.0,0.00017996,2]
[358147843,1744769438410,-500.0,0.00017996,2]
[358147844,1744769438420,-500.0,0.00017996,2]
[358147845,1744769438429,-500.0,0.00017996,2]
[358147846,1744769438439,-500.0,0.00017996,2]
[358147847,1744769438450,-500.0,0.00017996,2]
[358147848,1744769438459,-402.44137709,0.00017996,2]
[358147849,1744769438469,-500.0,0.00017996,2]
[358147850,1744769438479,-500.0,0.00017996,2]
[358147851,1744769438488,-500.0,0.00017996,2]
[358147852,1744769438499,-500.0,0.00017996,2]
[358147853,1744769438508,-500.0,0.00017996,2]
[358147854,1744769438518,-500.0,0.00017996,2]
[358147855,1744769438528,-500.0,0.00017996,2]
[358147856,1744769438537,-500.0,0.00017996,2]
[358147857,1744769438546,-500.0,0.00017996,2]
[358147858,1744769438557,-500.0,0.00017996,2]
[358147859,1744769438567,-500.0,0.00017996,2]
[358147860,1744769438576,-500.0,0.00017996,2]
[358147861,1744769438585,-500.0,0.00017996,2]
[358147862,1744769438594,-500.0,0.00017996,2]
[358147863,1744769438604,-500.0,0.00017996,2]
[358147864,1744769438613,-500.0,0.00017996,2]
[358147865,1744769438623,-2613.31598819,0.00017996,2]
[358147866,1744769438633,-2613.31598819,0.00017996,2]
[358147867,1744769438643,-2613.31598819,0.00017996,2]
[358147868,1744769438652,-2613.31598819,0.00017996,2]
[358147869,1744769438662,-2613.31598819,0.00017996,2]
[358147870,1744769438672,-2613.31598819,0.00017996,2]
[358147871,1744769438681,-2613.31598819,0.00017996,2]
[358147872,1744769438691,-2613.31598819,0.00017996,2]
[358147873,1744769438700,-2613.31598819,0.00017996,2]
[358147874,1744769438709,-2613.31598819,0.00017996,2]
[358147875,1744769438719,-2613.31598819,0.00017996,2]
[358147876,1744769438728,-2613.31598819,0.00017996,2]
[358147877,1744769438738,-2613.31598819,0.00017996,2]
[358147878,1744769438747,-2613.31598819,0.00017996,2]
[358147879,1744769438757,-2613.31598819,0.00017996,2]
[358147880,1744769438766,-2613.31598819,0.00017996,2]
[358147881,1744769438776,-2613.31598819,0.00017996,2]
[358147882,1744769438785,-2613.31598819,0.00017996,2]
[358147883,1744769438795,-2613.31598819,0.00017996,2]
[358147884,1744769438804,-2613.31598819,0.00017996,2]
[358147885,1744769438814,-2613.31598819,0.00017996,2]
[358147886,1744769438823,-2613.31598819,0.00017996,2]
[358147887,1744769438832,-2613.31598819,0.00017996,2]
[358147888,1744769438842,-2613.31598819,0.00017996,2]
[358147889,1744769438851,-2613.31598819,0.00017996,2]
[358147890,1744769438860,-2613.31598819,0.00017996,2]
[358147891,1744769438871,-2613.31598819,0.00017996,2]
[358147892,1744769438880,-2613.31598819,0.00017996,2]
[358147893,1744769438890,-2613.31598819,0.00017996,2]
[358147894,1744769438899,-2613.31598805,0.00017996,2]
[358147895,1744769438908,-500.0,0.00017999,2]
[358147896,1744769438918,-689769.43596995,0.00018,2]
[358147897,1744769438938,-1344.9902802,0.00018,2]
[358147898,1744769438950,-393.69097478,0.00018,2]
[358147899,1744769438965,-2450.01510591,0.00018,2]
[358147900,1744769438977,-445.60803611,0.00018,2]
[358147901,1744769438988,-326.45,0.00018,2]
[358147902,1744769439000,-4691.69643619,0.00018,2]
[358147903,1744769439016,-282.23840945,0.00018,2]
[358147911,1744769440042,-69168.46154753,0.00018,2]
[358147912,1744769440195,-6732.39733896,0.00018,2]
[358147917,1744769442862,-2862.32610858,0.00018,2]
[358147932,1744769445738,-171.05826783,0.00017999,2]
[358147933,1744769445747,-288.13986865,0.00017999,2]
[358147934,1744769445757,-682.74678338,0.00018,2]
[358147935,1744769445769,-397.26911999,0.00018,2]
[358147936,1744769445780,-2807.92204793,0.00018,2]
[358147937,1744769445813,-328.66109909,0.00017999,2]
[358147938,1744769445822,-38573.38430219,0.00018,2]
[358147939,1744769445831,-513.0,0.00018,2]
[358147940,1744769445841,-452290.83936357,0.00018,2]
[358147941,1744769445850,-147357.78378913,0.00018,2]
[358147942,1744769445872,-1538.29173675,0.00018,2]
[358148099,1744769453717,1308.90783009,0.00017999,5]
[358148101,1744769766560,300.0,0.000172,6]
[358148102,1744769768645,700.0,0.000173,6]
[358148103,1744769770724,1100.0,0.000174,6]
[358148104,1744769772809,1500.0,0.000175,6]
[358148105,1744769774920,1900.0,0.000176,6]
[358148106,1744769776973,300.0,0.000177,6]
[358148107,1744769779057,300.0,0.000178,6]
[358148108,1744769781134,300.0,0.000179,6]
[358148109,1744769843935,584.16,0.00015644,2]
[358148110,1744769952752,166.37,0.00017439,2]
[358148111,1744770063546,614.198446,0.00025,30]
[358148112,1744770074490,500.0,0.00025,30]
[358148113,1744770177804,603.18,0.00025,30]
[358148114,1744770180840,170.31,0.00016712,2]
[358148115,1744770331438,1000.0,0.00017316,2]
[358148116,1744770332537,151.0447626,0.0002,120]
[358148117,1744770332699,8446.05,0.00017316,2]
[358148118,1744770492902,158.00131563,0.000265,120]
[358148119,1744770500610,162.9,0.00017276,2]
[358148120,1744770520803,620.39096571,0.000151,2]
[358148128,1744770597512,-4541.53409847,0.00017649,2]
[358148137,1744770631867,-41.28590153,0.00017649,2]
[358148138,1744770631877,-250.0,0.00017674,2]
[358148139,1744770631885,-166.04,0.000177,2]
[358148140,1744770631894,-300.0,0.00017855,2]
[358148141,1744770631903,-1684.43279159,0.00017856,2]
[358148142,1744770631924,-8919.72456313,0.00017856,2]
[358148143,1744770631933,-500.0,0.0001789,2]
[358148144,1744770631942,-677.13310154,0.000179,2]
[358148145,1744770631951,-522.4624,0.000179,2]
[358148146,1744770631960,-1000.0,0.000179,2]
[358148147,1744770631969,-1560.7144,0.000179,2]
[358148148,1744770631978,-500.0,0.000179,2]
[358148149,1744770631986,-420.14190127,0.000179,2]
[358148150,1744770631996,-11069.89409706,0.000179,2]
[358148151,1744770632005,-584.16,0.00017908,2]
[358148152,1744770632014,-164.2893933,0.0001791,2]
[358148153,1744770632024,-503.27335369,0.00017973,2]
[358148154,1744770632033,-503.53954002,0.00017973,2]
[358148155,1744770632043,-266.86,0.00017973,2]
[358148156,1744770632053,-3147.3648643,0.00017986,2]
[358148157,1744770632063,-3260.4175517,0.00017988,2]
[358148158,1744770632072,-999.919,0.00017989,2]
[358148159,1744770632082,-150.99,0.00017989,2]
[358148160,1744770632091,-207.4,0.00017989,2]
[358148161,1744770632101,-215.53378229,0.00017999,2]
[358148162,1744770632110,-925.44137537,0.00017999,2]
[358148163,1744770632119,-925.44137537,0.00017999,2]
[358148164,1744770632129,-925.44137537,0.00017999,2]
[358148165,1744770632139,-925.44137537,0.00017999,2]
[358148166,1744770632148,-925.44137537,0.00017999,2]
[358148167,1744770632158,-925.44137537,0.00017999,2]
[358148168,1744770632168,-925.44137537,0.00017999,2]
[358148169,1744770632179,-925.44137537,0.00017999,2]
[358148170,1744770632188,-925.44137537,0.00017999,2]
[358148171,1744770632198,-925.44137537,0.00017999,2]
[358148172,1744770632207,-925.44137537,0.00017999,2]
[358148173,1744770632217,-925.44137537,0.00017999,2]
[358148174,1744770632227,-925.44137537,0.00017999,2]
[358148175,1744770632237,-925.44137537,0.00017999,2]
[358148176,1744770632247,-925.44137537,0.00017999,2]
[358148177,1744770632256,-925.44137537,0.00017999,2]
[358148178,1744770632266,-925.44137537,0.00017999,2]
[358148179,1744770632276,-925.44137537,0.00017999,2]
[358148180,1744770632286,-925.44137537,0.00017999,2]
[358148181,1744770632295,-925.44137537,0.00017999,2]
[358148182,1744770632305,-925.44137537,0.00017999,2]
[358148183,1744770632315,-925.44137537,0.00017999,2]
[358148184,1744770632325,-925.44137537,0.00017999,2]
[358148185,1744770632334,-925.44137537,0.00017999,2]
[358148186,1744770632344,-432.17363626,0.00017999,2]
[358148187,1744770632356,-493.26773911,0.00017999,2]
[358148188,1744770632366,-24.72426089,0.00017999,2]
[358148189,1744770632378,-900.71711448,0.00017999,2]
[358148190,1744770632389,-925.44137537,0.00017999,2]
[358148191,1744770632398,-925.44137537,0.00017999,2]
[358148192,1744770632411,-925.44137537,0.00017999,2]
[358148193,1744770632420,-925.44137537,0.00017999,2]
[358148194,1744770632429,-925.44137537,0.00017999,2]
[358148196,1744770632438,-40.5743083,0.00017999,2]
[358148198,1744770632450,-302.70769261,0.00017999,2]
[358148200,1744770632461,-582.15937446,0.00017999,2]
[358148202,1744770632471,-925.44137537,0.00017999,2]
[358148204,1744770632480,-925.44137537,0.00017999,2]
[358148206,1744770632489,-484.46089318,0.00017999,2]
[358148345,1744770638025,-440.98048219,0.00017999,2]
[358148346,1744770638035,-925.44137537,0.00017999,2]
[358148347,1744770638044,-925.44137537,0.00017999,2]
[358148348,1744770638054,-925.44137537,0.00017999,2]
[358148349,1744770638065,-925.44137537,0.00017999,2]